[Event "Sardinia World Festival-A 2024"]
[Site "Orosei"]
[Date "2024.04.28"]
[Round "2.35"]
[White "Krishnan, Ritvik"]
[Black "Aghayev, Miragha"]
[Result "1/2-1/2"]
[ECO "C54"]
[WhiteElo "2277"]
[BlackElo "2424"]
[Annotator "TA"]
[PlyCount "38"]
[EventDate "2024.04.26"]
[EventType "swiss"]
[EventCountry "ITA"]
[SourceTitle "playchess.com"]
[Source "ChessBase"]
[SourceQuality "1"]
[TimeControl "40/5400+30:1800+30"]

{[%evp 14,38,12,12,14,8,14,4,14,0,0,-7,-14,0,24,14,14,9,10,4,19,15,18,28,21,13,14]} 1. e4 {[%emt 0:03:57]} e5 {[%emt 0:00:12]} 2. Nf3 {[%emt 0:00:24]} Nc6 {[%emt 0:00:10]} 3. Bc4 {[%emt 0:00:07]} Bc5 {[%emt 0:00:06]} 4. O-O {[%emt 0:00:14]} Nf6 {[%emt 0:00:11]} 5. d3 {[%emt 0:00:05]} d6 {[%emt 0:00:05]} 6. c3 {[%emt 0:00:10]} O-O {[%emt 0:00:11]} 7. h3 {[%emt 0:00:05]} h6 {[%emt 0:00:06]} 8. Re1 {[%emt 0:00:19]} a5 {[%emt 0:00:05]} 9. Nbd2 {[%emt 0:00:12][%cal Bb1d2,Bd2f1,Bf1g3][%mdl 32]} a4 {[%emt 0:00:07]} 10. Nf1 {[%emt 0:05:03]} Ra5 {[%emt 0:01:50]} 11. d4 {[%emt 0:01:51]} Bb6 {[%emt 0:14:57]} 12. b4 {[%emt 0:12:52]} axb3 $1 {[%emt 0:05:19]} 13. Bxb3 {[%emt 0:01:34]} Ra8 {[%emt 0:14:41]} 14. Ng3 {[%emt 0:01:35]} Re8 {[%emt 0:04:30]} 15. Qd3 {[%emt 0:09:09]} Na5 {[%emt 0:26:19] [#] Strongly threatening ...Nxb3.} 16. Be3 {[%emt 0:14:27]} Nxb3 {[%emt 0:02:00]} 17. axb3 {[%emt 0:00:02]} Rxa1 {[%emt 0:00:08]} 18. Rxa1 {[%emt 0:00:04]} exd4 {[%emt 0:03:41]} 19. Bxd4 {[%emt 0:03:19]} Bxd4 {[%emt 0:07:26] Not much happened in this game.   Weighted Error Value: White=0.05 (flawless) /Black=0.04 (flawless) .  OK:         	White=2     	Black=5      Strong:       	---       	Black=1} 1/2-1/2

[Event "Sardinia World Festival-A 2024"]
[Site "Orosei"]
[Date "2024.04.28"]
[Round "2.36"]
[White "Kanov, Nikola"]
[Black "Verga, Francesco"]
[Result "1-0"]
[ECO "B90"]
[WhiteElo "2423"]
[BlackElo "2074"]
[Annotator "TA"]
[PlyCount "73"]
[EventDate "2024.04.26"]
[EventType "swiss"]
[EventCountry "ITA"]
[SourceTitle "playchess.com"]
[Source "ChessBase"]
[SourceQuality "1"]
[TimeControl "40/5400+30:1800+30"]

{[%evp 13,73,10,26,1,14,14,9,23,31,30,24,12,27,57,53,50,54,55,45,16,27,18,43,40,42,39,75,60,71,73,131,137,140,119,145,147,145,124,141,110,140,144,143,139,134,111,108,112,204,209,739,742,737,728,701,580,1033,1029,1011,997,930,885]} 1. e4 {[%emt 0:00:04]} c5 {[%emt 0:00:09]} 2. Nf3 {[%emt 0:00:13]} d6 {[%emt 0:00:04]} 3. d4 {[%emt 0:00:13]} cxd4 {[%emt 0:00:10]} 4. Nxd4 {[%emt 0:00:06]} Nf6 {[%emt 0:00:05]} 5. Nc3 {[%emt 0:00:14]} a6 {[%emt 0:00:01]} 6. Be3 {[%emt 0:00:21]} e5 {[%emt 0:00:06]} 7. Nb3 {[%emt 0:00:30]} Be6 {[%emt 0:00:10]} 8. h3 {[%emt 0:00:18]} Be7 {[%emt 0:00:15]} 9. f4 {[%emt 0:00:39][%cal Bf2f4,Bf4f5][%mdl 32]} Nc6 {[%emt 0:01:08]} 10. f5 {[%emt 0:00:34] The position is equal.} Bxb3 {[%emt 0:00:10]} 11. axb3 {[%emt 0:00:09]} Nb4 {[%emt 0:03:09]} 12. g3 {[%emt 1:33:09]} d5 {[%emt 0:02:58]} (12... Qc8 {looks sharper.} 13. Bg2 d5 14. exd5 Qxf5 15. Rc1 e4) 13. exd5 {[%emt 0:00:00]} Nfxd5 {[%emt 0:01:31]} 14. Nxd5 {[%emt 0:00:00]} Qxd5 {[%emt 0:01:13]} 15. Qxd5 {[%emt 0:00:00]} Nxd5 {[%emt 0:01:02]} 16. Bf2 {[%emt 0:00:00]} O-O-O {[%emt 0:06:12]} 17. Bg2 {[%emt 0:00:00][%cal Bf1g2,Bg2d5,Bd5e6][%mdl 32]} Rhe8 {[%emt 0:05:31]} 18. Ke2 {[%emt 0:00:00]} Nf6 {[%emt 0:07:34]} 19. c3 {[%emt 0:00:00]} Bd6 {[%emt 0:02:44][%cal Be7d6,Bd6c7,Bc7b6][%mdl 32]} 20. Rhd1 {[%emt 0:00:00]} Bc7 {[%emt 0:07:09]} 21. g4 {[%emt 0:00:00]} Nd7 {[%emt 0:09:27]} ({Black should try} 21... e4) 22. Bd5 $16 {[%emt 0:00:00] White has more active pieces. Black is weak on the light squares} Re7 {[%emt 0:03:13]} 23. b4 {[%emt 0:00:00]} Bb6 {[%emt 0:05:18]} 24. Bh4 {[%emt 0:00:00] A strong pair of Bishops.} f6 {[%emt 0:00:25]} 25. Be6 {[%emt 0:00:00]} Kc7 {[%emt 0:01:39]} 26. g5 {[%emt 0:00:00]} fxg5 {[%emt 0:03:05]} 27. Bxg5 {[%emt 0:00:00]} Nf6 {[%emt 0:00:05]} 28. Rxd8 {[%emt 0:00:00]} Kxd8 {[%emt 0:00:04]} 29. Bh4 {[%emt 0:00:00]} Kc7 {[%emt 0:03:11]} 30. Bg3 {[%emt 0:00:00]} Nd7 {[%emt 0:00:09]} (30... Kc6 $16) 31. Rd1 $18 {[%emt 0:00:00] Strongly threatening c4.} g6 $2 {[%emt 0:00:54] [#]} (31... Kc6 32. Bd5+ (32. Bxd7+ Rxd7 33. Rxd7 Kxd7 $18) 32... Kc7) 32. Bh4 {[%emt 0:00:00] White is clearly winning.} g5 {[%emt 0:02:39]} 33. Bxg5 {[%emt 0:00:00]} Rg7 {[%emt 0:00:04]} 34. Bh4 {[%emt 0:00:00]} Nf8 {[%emt 0:04:04]} 35. Bd8+ {[%emt 0:00:00]} Kc6 {[%emt 0:00:06]} 36. Bd5+ {[%emt 0:00:00]} Kb5 {[%emt 0:00:11]} 37. c4+ {[%emt 0:00:00] Weighted Error Value: White=0.15 (very precise) /Black=0.18 (very precise) .  Mistake:       	---       	Black=3      Inaccurate:     	White=1     	Black=1      OK:         	White=11    	Black=5      Best:        	White=2     	Black=4} 1-0

[Event "Sardinia World Festival-A 2024"]
[Site "Orosei"]
[Date "2024.04.28"]
[Round "2.37"]
[White "Moroni, Luca Jr"]
[Black "Fabiano, Giuseppe"]
[Result "1-0"]
[ECO "E61"]
[WhiteElo "2580"]
[BlackElo "2047"]
[Annotator "TA"]
[PlyCount "104"]
[EventDate "2024.04.26"]
[EventType "swiss"]
[EventCountry "ITA"]
[SourceTitle "playchess.com"]
[Source "ChessBase"]
[SourceQuality "1"]
[TimeControl "40/5400+30:1800+30"]

{[%evp 21,104,-35,4,-27,8,6,8,27,53,31,66,37,57,22,32,0,37,32,49,28,37,-52,-40,-33,-47,-72,-68,-62,-75,-187,-70,-85,-73,-78,-79,-90,-79,-100,-88,-94,-41,-38,-33,-166,-137,-123,0,0,-15,-134,-137,-129,-130,-118,547,543,537,543,524,545,490,482,562,603,633,622,693,693,748,504,968,822,1207,1010,2087,2113,29976,29977,29976,29976,29981,29982,29982,29983,29974]} 1. c4 {[%emt 0:02:47]} e5 {[%emt 0:01:01]} 2. Nc3 {[%emt 0:00:17]} Nf6 {[%emt 0:00:48]} 3. e3 {[%emt 0:01:59]} c6 {[%emt 1:30:11]} 4. d4 {[%emt 0:01:31]} d6 {[%emt 0:00:00]} 5. Nge2 {[%emt 0:00:44]} g6 {[%emt 0:00:00]} 6. g3 {[%emt 0:03:18]} Bg7 {[%emt 0:00:00]} 7. Bg2 {[%emt 0:05:14]} O-O {[%emt 0:00:00]} 8. O-O {[%emt 0:00:32]} Re8 {[%emt 0:00:00] now scores much better than the old 8...Nbd7.} 9. b4 {[%emt 0:05:22]} e4 {[%emt 0:00:00] E61: King's Indian: Early deviations for White, including Smyslov System.} 10. b5 {[%emt 0:00:36]} Bf5 {[%emt 0:00:00]} 11. Ba3 {[%emt 0:01:17]} h5 {[%emt 0:00:00]} 12. h3 {[%emt 0:07:18]} Bh6 $146 {[%emt 0:00:00]} ({Predecessor:} 12... Bf8 13. Rb1 Nbd7 14. bxc6 bxc6 15. Qc2 Qa5 16. Rb3 Qa6 17. Rc1 Rab8 18. Bf1 Rxb3 19. Qxb3 Rb8 20. Qa4 Qxa4 21. Nxa4 Nb6 22. Nec3 Nfd7 23. Kg2 {½-½ Fuchs,R-Johannsson,I Copenhagen 1956 (1)}) 13. Rb1 {[%emt 0:03:22]} Qd7 {[%emt 0:00:00]} 14. Kh2 {[%emt 0:01:09]} Nh7 {[%emt 0:00:00]} 15. Nf4 {[%emt 0:06:29]} Ng5 {[%emt 0:00:00]} 16. Rb2 {[%emt 0:00:39]} Bg7 {[%emt 0:00:00]} 17. Qe2 {[%emt 0:08:53]} c5 {[%emt 0:00:00]} 18. Rd1 {[%emt 0:01:19]} b6 {[%emt 0:00:00]} 19. Rb3 {[%emt 0:03:12]} Qc8 {[%emt 0:00:00]} 20. Bb2 {[%emt 0:04:13]} Nd7 {[%emt 0:00:00]} 21. Rd2 {[%emt 0:06:23]} (21. Ncd5 $14) 21... cxd4 $1 $15 {[%emt 0:00:00]} 22. exd4 {[%emt 0:00:17]} Nf6 {[%emt 0:00:00]} 23. Ba3 {[%emt 0:08:28]} Nf3+ $1 {[%emt 0:00:00]} 24. Bxf3 {[%emt 0:01:12]} exf3 {[%emt 0:00:00]} 25. Qf1 {[%emt 0:00:54] [#]} (25. Qxf3 $17 Qxc4 26. Rb4) 25... Qd7 {[%emt 0:00:00]} (25... Bh6 $1 $19 {[%cal Of5h3]} 26. Rd1 Bxf4 27. gxf4 Bc2 28. Bxd6 Qf5 (28... Bxd1 29. Nxd1 a6 30. bxa6 $17)) 26. Ncd5 {[%emt 0:01:25]} Nxd5 {[%emt 0:00:00]} 27. Nxd5 {[%emt 0:00:18]} Be4 {[%emt 0:00:00]} 28. Nc3 {[%emt 0:02:50]} f5 {[%emt 0:00:00]} 29. Nxe4 {[%emt 0:01:03]} fxe4 {[%emt 0:00:00]} 30. Rd1 {[%emt 0:00:02]} Rad8 {[%emt 0:00:00]} ({Black should try} 30... d5 $17 {...dxc4 is the strong threat.} 31. cxd5 Qxd5) 31. Bc1 $15 {[%emt 0:02:51]} d5 {[%emt 0:00:22]} 32. c5 {[%emt 0:01:28]} (32. Be3 $15) 32... bxc5 $19 {[%emt 0:02:21]} 33. dxc5 {[%emt 0:00:01]} d4 {[%emt 0:00:14]} (33... h4 $1 $17 {[%cal Rh4g3]} 34. Bf4 Qf5) 34. Bg5 $1 $11 {[%emt 0:00:05]} Rc8 {[%emt 0:01:01]} 35. Qc4+ {[%emt 0:00:12]} (35. c6 $11 {was the only way to keep the balance.} Qd5 36. h4) 35... Kh7 $17 {[%emt 0:00:50]} 36. c6 {[%emt 0:00:29]} Qf5 {[%emt 0:00:21]} 37. h4 {[%emt 0:00:23] [#]} Be5 $2 {[%emt 0:04:08][%mdl 8192]} (37... d3 38. Re1 $14) (37... e3 $1 $17 {and life is bright. Threatens to win with ...Re4.} 38. fxe3 Re4) 38. Rxd4 $1 $18 {[%emt 0:01:36]} Bxd4 {[%emt 0:01:35]} 39. Qxd4 {[%emt 0:00:01]} Rc7 {[%emt 0:01:20]} 40. a4 {[%emt 0:02:06]} Qe6 {[%emt 0:02:52]} 41. Rb2 {[%emt 0:32:13]} ({Not} 41. Re3 Qa2 42. Re1 (42. Rxe4 $2 {too greedy.} Rxe4 43. Qd2 Qxd2 $19) 42... e3 43. Bxe3 (43. Rxe3 $2 {leads to mate.} Qxf2+ 44. Kh3 Qg2#) 43... Rce7 $18) 41... Rf7 {[%emt 0:33:23]} 42. Be3 {[%emt 0:04:17]} Qe7 {[%emt 0:00:25]} 43. Qb4 {[%emt 0:02:47]} Qe6 {[%emt 0:00:00]} 44. Rd2 {[%emt 0:00:00]} Qe5 {[%emt 0:00:00]} 45. Rd4 {[%emt 0:00:00]} g5 {[%emt 0:00:00]} (45... Rfe7 $142 46. a5 Kh8) 46. Bxg5 $18 {[%emt 0:00:00]} e3 {[%emt 0:00:00]} 47. Bxe3 {[%emt 0:00:00]} Rg8 {[%emt 0:00:00]} 48. Qd6 {[%emt 0:00:00]} Re8 {[%emt 0:00:00]} 49. Qxe5 {[%emt 0:00:00]} Rxe5 {[%emt 0:00:00]} 50. Rd7 {[%emt 0:00:00]} Rxd7 {[%emt 0:00:00]} 51. cxd7 {[%emt 0:00:00]} Rd5 {[%emt 0:00:00]} 52. Bxa7 {[%emt 0:00:00]} Rxd7 {[%emt 0:00:00]} 1-0

[Event "Sardinia World Festival-A 2024"]
[Site "Orosei"]
[Date "2024.04.28"]
[Round "2.38"]
[White "Bronstein, Or"]
[Black "Bin-Suhayl, Ieysaa"]
[Result "1-0"]
[ECO "D12"]
[WhiteElo "2458"]
[BlackElo "2214"]
[Annotator "TA"]
[PlyCount "107"]
[EventDate "2024.04.26"]
[EventType "swiss"]
[EventCountry "ITA"]
[SourceTitle "playchess.com"]
[Source "ChessBase"]
[SourceQuality "1"]
[TimeControl "40/5400+30:1800+30"]

{[%evp 13,107,23,29,29,35,12,12,21,13,23,26,29,24,0,14,-24,-18,-17,-7,-17,-18,-70,-12,-51,-37,-77,-63,-65,54,0,54,48,69,52,45,41,38,4,13,5,8,6,12,0,29,29,37,35,45,35,39,-6,32,29,34,27,75,83,80,70,230,238,236,216,341,330,333,328,327,330,520,520,527,530,633,677,652,637,695,649,29973,29975,29983,29984,29984,29985,29985,29985,29986,29987,29987,29988,29988,29989,29990,29991]} 1. d4 {[%emt 0:00:03]} d5 {[%emt 0:04:08]} 2. c4 {[%emt 0:02:13]} c6 {[%emt 0:00:13]} 3. Nf3 {[%emt 0:00:07]} Nf6 {[%emt 0:00:09]} 4. e3 {[%emt 0:00:06]} Bf5 {[%emt 0:00:39]} 5. Nc3 {[%emt 0:00:08]} e6 {[%emt 0:01:02]} 6. Nh4 {[%emt 0:00:55]} Bg6 {[%emt 0:00:08]} 7. Nxg6 {[%emt 0:01:39]} hxg6 {[%emt 0:00:05]} 8. Bd2 {[%emt 0:00:05]} Nbd7 {[%emt 0:01:39]} 9. Qb3 {[%emt 0:01:07]} Qc7 {[%emt 0:06:39]} 10. cxd5 {[%emt 0:02:41] The position is equal.} exd5 {[%emt 0:00:26]} 11. O-O-O {[%emt 0:00:14]} Be7 {[%emt 0:08:09][%cal Oa7a5]} 12. Kb1 {[%emt 0:02:32]} a5 {[%emt 0:00:13]} 13. Rc1 {[%emt 0:08:33][%cal Oc3d5]} Nb6 {[%emt 0:12:31][%cal Oa5a4]} 14. f3 {[%emt 0:25:29]} a4 {[%emt 0:00:23]} 15. Qc2 {[%emt 0:00:10]} Rxh2 {[%emt 0:05:20]} 16. Rxh2 {[%emt 0:00:48]} Qxh2 {[%emt 0:00:07]} 17. e4 {[%emt 0:00:08]} (17. a3 $11) 17... Kf8 {[%emt 0:09:46]} ({Black should try} 17... a3 $15 18. Qb3 axb2) 18. Re1 {[%emt 0:09:42]} Qh4 {[%emt 0:05:36]} 19. Qc1 {[%emt 0:02:08]} a3 {[%emt 0:08:19]} 20. b3 $1 {[%emt 0:00:03]} Re8 {[%emt 0:01:00]} (20... dxe4 $15 21. Bg5 Qh2 (21... Qf2 22. Be3 $17) 22. fxe4 Kg8) 21. Bg5 {[%emt 0:10:53]} ({Better is} 21. e5 $14) 21... Qf2 {[%emt 0:00:55]} (21... Qh1 $11) 22. Be3 $14 {[%emt 0:00:21]} Qb2+ {[%emt 0:00:30]} 23. Qxb2 {[%emt 0:00:01]} axb2 {[%emt 0:00:06]} 24. e5 {[%emt 0:32:24]} (24. Kxb2 dxe4 25. Nxe4 (25. fxe4 $2 Bb4 $17) 25... Nxe4 26. fxe4 Bh4 $19) 24... Nfd7 {[%emt 0:03:34]} 25. Kxb2 {[%emt 0:00:00]} (25. g3 {with more complications.} Ba3 26. Nd1 f6 27. f4) 25... Bh4 {[%emt 0:00:22]} 26. Rd1 {[%emt 0:00:00]} f6 {[%emt 0:09:09]} 27. Bd3 {[%emt 0:00:00]} fxe5 {[%emt 0:01:17]} 28. Bxg6 {[%emt 0:00:00]} exd4 {[%emt 0:08:08]} 29. Bxd4 {[%emt 0:00:00] A strong pair of Bishops.} Re1 {[%emt 0:00:02]} 30. Rxe1 {[%emt 0:00:00]} Bxe1 {[%emt 0:00:04]} 31. Ne2 {[%emt 0:00:00]} Bh4 {[%emt 0:03:37]} 32. Be3 {[%emt 0:00:00]} Bf6+ {[%emt 0:00:05]} 33. Kc2 {[%emt 0:00:00]} Ke7 {[%emt 0:02:45]} 34. g4 {[%emt 0:00:00][%cal Bg2g4,Bg4g5][%mdl 32]} c5 {[%emt 0:09:21]} (34... Nc8 $11 {is superior.}) 35. g5 $16 {[%emt 0:00:00] White is more active.} Be5 {[%emt 0:00:02]} 36. f4 {[%emt 0:00:00]} d4 $2 {[%emt 0:00:06] This move loses the game for Black.} (36... Bb8 $14) 37. Bd2 $18 {[%emt 0:00:00]} Bb8 {[%emt 0:00:04] [#]} 38. Be4 $1 {[%emt 0:00:00]} c4 {[%emt 0:01:25]} (38... Nf8 $142 39. Bxb7 Ne6) 39. Nxd4 {[%emt 0:00:18]} ({Stronger than} 39. Bxb7 d3+ 40. Kd1 dxe2+ 41. Kxe2 cxb3 42. axb3 Ke6 $17) 39... cxb3+ {[%emt 0:01:00]} 40. axb3 {[%emt 0:03:20]} ({Much less strong is} 40. Nxb3 $6 Nc4 $18) 40... Nc5 {[%emt 0:00:17]} 41. Bf3 {[%emt 0:33:08]} Ne6 {[%emt 0:04:21]} (41... Kf7 {keeps fighting.} 42. f5 (42. b4 Ncd7 $18) 42... Be5) 42. Nxe6 {[%emt 0:00:00]} Kxe6 {[%emt 0:00:05]} 43. Bxb7 {[%emt 0:00:00][%mdl 4096] Endgame. KBB-KBN} Kf5 {[%emt 0:00:56]} 44. Be3 {[%emt 0:00:00]} Bc7 {[%emt 0:02:55]} 45. Kd3 {[%emt 0:00:00]} g6 {[%emt 0:01:15]} 46. b4 {[%emt 0:00:00]} Kg4 {[%emt 0:01:40]} 47. Bxb6 {[%emt 0:00:00] White mates.} Bxb6 {[%emt 0:00:06] KB-KB} 48. Ke4 {[%emt 0:00:00]} Bc7 {[%emt 0:05:11]} 49. Bc8+ {[%emt 0:00:00]} Kh4 {[%emt 0:01:32]} 50. Bd7 {[%emt 0:00:00]} Kh5 {[%emt 0:00:37]} 51. Kf3 {[%emt 0:00:00]} Kh4 {[%emt 0:05:01]} 52. Be8 {[%emt 0:00:00]} Bd6 {[%emt 0:01:07]} 53. b5 {[%emt 0:00:00]} Kh5 {[%emt 0:00:03]} 54. Kg3 {[%emt 0:00:00] Weighted Error Value: White=0.10 (very precise) /Black=0.45.  Mistake:       	White=2     	Black=7      Inaccurate:     	White=5     	Black=2      OK:         	White=16    	Black=11     Best:        	White=3     	Black=3      Strong:       	White=1     	---} 1-0

[Event "Sardinia World Festival-A 2024"]
[Site "Orosei"]
[Date "2024.04.28"]
[Round "2.39"]
[White "Piasetski, Leon"]
[Black "Levin, Guy"]
[Result "0-1"]
[ECO "D26"]
[WhiteElo "2159"]
[BlackElo "2451"]
[Annotator "TA"]
[PlyCount "88"]
[EventDate "2024.04.26"]
[EventType "swiss"]
[EventCountry "ITA"]
[SourceTitle "playchess.com"]
[Source "ChessBase"]
[SourceQuality "1"]
[TimeControl "40/5400+30:1800+30"]

{[%evp 13,88,13,20,0,0,0,0,0,0,0,0,0,0,0,0,0,0,0,1,-16,29,0,0,0,10,-15,0,-35,0,-14,-8,-4,-9,-12,-29,-25,0,0,0,-5,0,0,0,-4,0,0,0,-7,0,-4,0,0,0,0,0,0,0,0,0,0,24,0,0,0,0,0,0,-57,-65,-91,-58,-72,-75,-85,-77,-197,-184]} 1. Nf3 {[%emt 0:00:09]} d5 {[%emt 0:00:31]} 2. e3 {[%emt 0:01:05]} Nf6 {[%emt 0:00:14]} 3. c4 {[%emt 0:00:13]} dxc4 {[%emt 0:00:06]} 4. Bxc4 {[%emt 0:00:46]} e6 {[%emt 0:00:12]} 5. d4 {[%emt 0:03:40]} a6 {[%emt 0:00:06]} 6. Qe2 {[%emt 0:04:14]} c5 {[%emt 0:05:42]} 7. dxc5 {[%emt 0:05:35]} Bxc5 {[%emt 0:00:21]} 8. a3 {[%emt 0:00:54]} b5 {[%emt 0:00:43]} 9. Ba2 {[%emt 0:00:22]} Bb7 {[%emt 0:01:46]} 10. b4 {[%emt 0:04:15] The position is equal.} Bd6 {[%emt 0:02:55]} 11. Bb2 {[%emt 0:00:57]} Nbd7 {[%emt 0:03:18]} 12. Nbd2 {[%emt 0:03:35]} Rc8 {[%emt 0:01:16]} 13. O-O {[%emt 0:04:42]} O-O {[%emt 0:07:46]} 14. Rac1 {[%emt 0:02:09] Inhibits Rc2.} Qe7 {[%emt 0:01:07]} 15. e4 {[%emt 0:06:24] e5 is the strong threat.} Bb8 {[%emt 0:04:24]} 16. g3 {[%emt 0:06:46]} Nb6 {[%emt 0:10:19]} 17. Bb3 {[%emt 0:09:09]} Rfd8 {[%emt 0:03:13]} 18. Bd4 {[%emt 0:05:06]} Nbd7 {[%emt 0:01:27]} 19. h3 {[%emt 0:05:35]} h6 {[%emt 0:03:14]} 20. Qe3 {[%emt 0:01:04]} Ne8 {[%emt 0:03:20]} 21. Bb2 {[%emt 0:03:25]} Nd6 {[%emt 0:05:35]} 22. Rxc8 {[%emt 0:00:18]} Rxc8 {[%emt 0:02:23]} 23. Rc1 {[%emt 0:00:09]} (23. Nh4 {is interesting.} a5 24. bxa5 Qd8 25. Qd4) 23... Rxc1+ {[%emt 0:10:12]} 24. Bxc1 {[%emt 0:00:07]} Qd8 {[%emt 0:00:49]} 25. Bb2 {[%emt 0:01:02]} Ne8 {[%emt 0:04:29]} 26. Bc2 {[%emt 0:08:52]} Bc7 {[%emt 0:04:07]} 27. Nb3 {[%emt 0:02:37]} Qc8 {[%emt 0:07:52][%cal Oc7g3]} 28. Bd3 {[%emt 0:02:00]} Qb8 {[%emt 0:01:27]} 29. Kg2 {[%emt 0:00:48]} Nef6 {[%emt 0:02:15]} 30. Bd4 {[%emt 0:04:44]} Qa8 {[%emt 0:01:00] And now ...e5 would win.} 31. Nbd2 {[%emt 0:00:55]} Bc6 {[%emt 0:01:12]} 32. Qe2 {[%emt 0:01:07]} Ne8 {[%emt 0:01:06][%cal Bf6e8,Be8c7,Bc7d5,Bd5e7,Be7c6][%mdl 32]} 33. e5 {[%emt 0:02:56]} Bd5 {[%emt 0:06:18]} 34. Be4 {[%emt 0:02:04]} Bb8 {[%emt 0:02:58]} 35. Bxd5 {[%emt 0:00:46]} Qxd5 {[%emt 0:00:02]} 36. Qe4 {[%emt 0:00:16]} Nc7 {[%emt 0:00:11]} 37. Kf1 {[%emt 0:01:40]} (37. Qh4 {with more complications.} Na8 38. Qd8+ Kh7 39. Kf1) 37... Qxe4 {[%emt 0:01:17]} 38. Nxe4 {[%emt 0:00:09]} Nd5 {[%emt 0:00:03]} 39. Ke2 {[%emt 0:00:38]} Ne7 {[%emt 0:00:48]} 40. Nc5 {[%emt 0:04:21]} (40. Bc5 $11 Nc8 41. Bd4) 40... Nxc5 $15 {[%emt 0:00:22]} 41. bxc5 {[%emt 0:32:05]} Kf8 {[%emt 0:04:59]} 42. Kd3 {[%emt 0:00:00]} Nc6 {[%emt 0:02:29]} 43. Ke4 {[%emt 0:00:00]} Ke7 {[%emt 0:01:21]} 44. Nd2 {[%emt 0:00:00] [#]} (44. h4 $17) 44... Bxe5 $1 {[%emt 0:03:27][%mdl 512] Weighted Error Value: White=0.12 (very precise) /Black=0.06 (flawless) .  Mistake:       	White=2     	---        Inaccurate:     	White=2     	Black=3      OK:         	White=14    	Black=15     Best:        	---       	Black=1      Brilliant:      	---       	Black=1} 0-1